[Event "*** Titled Tuesday Blitz"]
[Site "Chess.com"]
[Date "2020.04.21"]
[Round "1"]
[White "cholzan"]
[Black "MisiekZielony"]
[Result "1-0"]
[WhiteElo "2505"]
[BlackElo "2042"]
[TimeControl "180+1"]
[EndTime "10:07:02 PDT"]
[Termination "cholzan won by resignation"]

1. d4 {[%clk 0:03:00.8]} 1... d5 {[%clk 0:02:59.5]} 2. c4 {[%clk 0:03:00.3]}
2... c6 {[%clk 0:02:59.4]} 3. Nf3 {[%clk 0:03:00.9]} 3... Nf6 {[%clk 0:02:59.1]}
4. e3 {[%clk 0:03:01.5]} 4... g6 {[%clk 0:02:58.4]} 5. b3 {[%clk 0:02:59.5]}
5... Bg7 {[%clk 0:02:58.1]} 6. Bb2 {[%clk 0:03:00]} 6... O-O {[%clk 0:02:57.8]}
7. Nbd2 {[%clk 0:03:00.6]} 7... b6 {[%clk 0:02:57.4]} 8. Be2 {[%clk 0:03:01.2]}
8... Bb7 {[%clk 0:02:57.1]} 9. O-O {[%clk 0:03:01.8]} 9... Nbd7 {[%clk 0:02:57]}
10. Rc1 {[%clk 0:03:02.4]} 10... c5 {[%clk 0:02:49.7]} 11. Qc2 {[%clk
0:03:02.6]} 11... Qb8 {[%clk 0:02:47.5]} 12. Qb1 {[%clk 0:03:00.7]} 12... Rc8
{[%clk 0:02:21]} 13. Qa1 {[%clk 0:02:54.7]} 13... e6 {[%clk 0:02:07.9]} 14. cxd5
{[%clk 0:02:52.6]} 14... Nxd5 {[%clk 0:02:06.8]} 15. dxc5 {[%clk 0:02:50.4]}
15... Bxb2 {[%clk 0:02:05.5]} 16. Qxb2 {[%clk 0:02:51.3]} 16... Nxc5 {[%clk
0:02:04.8]} 17. Ng5 {[%clk 0:02:37.7]} 17... h6 {[%clk 0:01:24]} 18. Nge4 {[%clk
0:02:36.4]} 18... Nxe4 {[%clk 0:01:23.2]} 19. Nxe4 {[%clk 0:02:37.3]} 19... f5
{[%clk 0:01:21.7]} 20. Nf6+ {[%clk 0:02:33.2]} 20... Kf7 {[%clk 0:01:20.7]} 21.
Nd7 {[%clk 0:02:30]} 21... Qd6 {[%clk 0:01:07.7]} 22. Ne5+ {[%clk 0:02:29.2]}
22... Kg8 {[%clk 0:01:04.7]} 23. Nxg6 {[%clk 0:02:28.4]} 23... Kh7 {[%clk
0:01:04.6]} 24. Bh5 {[%clk 0:02:20.8]} 24... Rg8 {[%clk 0:01:01.8]} 25. Nh4
{[%clk 0:01:50.3]} 25... Qe7 {[%clk 0:01:00.4]} 26. Ng6 {[%clk 0:01:36.5]} 26...
Rxg6 {[%clk 0:00:58.4]} 27. Bxg6+ {[%clk 0:01:37.4]} 27... Kxg6 {[%clk
0:00:58.7]} 28. Qe5 {[%clk 0:01:37.8]} 28... Rd8 {[%clk 0:00:50.4]} 29. Rfd1
{[%clk 0:01:36.6]} 29... Rd7 {[%clk 0:00:50.3]} 30. e4 {[%clk 0:01:33.8]} 30...
Nf6 {[%clk 0:00:32.6]} 31. Rxd7 {[%clk 0:01:26.1]} 31... Nxd7 {[%clk 0:00:17.9]}
32. exf5+ {[%clk 0:01:26]} 32... Kf7 {[%clk 0:00:17.2]} 33. fxe6+ {[%clk
0:01:12.8]} 33... Qxe6 {[%clk 0:00:17.2]} 34. Qh5+ {[%clk 0:01:12.7]} 34... Ke7
{[%clk 0:00:11.4]} 35. Qh4+ {[%clk 0:01:07.7]} 35... Kf7 {[%clk 0:00:09.3]} 36.
Qf4+ {[%clk 0:01:06.2]} 36... Ke7 {[%clk 0:00:08.9]} 37. h3 {[%clk 0:01:04.3]}
37... Bd5 {[%clk 0:00:06.4]} 38. Qd2 {[%clk 0:01:02.4]} 1-0

[Event "*** Titled Tuesday Blitz"]
[Site "Chess.com"]
[Date "2020.04.21"]
[Round "1"]
[White "Sanan_Sjugirov"]
[Black "dey2580"]
[Result "0-1"]
[WhiteElo "2841"]
[BlackElo "2473"]
[TimeControl "180+1"]
[EndTime "10:07:05 PDT"]
[Termination "dey2580 won by resignation"]

1. e4 {[%clk 0:03:00.9]} 1... c5 {[%clk 0:02:58.3]} 2. Nf3 {[%clk 0:03:00.7]}
2... e6 {[%clk 0:02:58.2]} 3. d3 {[%clk 0:02:59.9]} 3... Nc6 {[%clk 0:02:57.5]}
4. g3 {[%clk 0:02:58.7]} 4... d5 {[%clk 0:02:53.9]} 5. Qe2 {[%clk 0:02:58]} 5...
Nge7 {[%clk 0:02:38.8]} 6. Bg2 {[%clk 0:02:56.9]} 6... b6 {[%clk 0:02:31.3]} 7.
O-O {[%clk 0:02:48.9]} 7... Bb7 {[%clk 0:02:29.8]} 8. Rd1 {[%clk 0:02:33.3]}
8... h6 {[%clk 0:01:59.9]} 9. b3 {[%clk 0:02:01.6]} 9... Rc8 {[%clk 0:01:51.8]}
10. Bb2 {[%clk 0:01:59.5]} 10... d4 {[%clk 0:01:50.8]} 11. Nbd2 {[%clk
0:01:50.9]} 11... b5 {[%clk 0:01:22.2]} 12. a4 {[%clk 0:01:50.2]} 12... a6
{[%clk 0:01:21.7]} 13. axb5 {[%clk 0:01:50.1]} 13... axb5 {[%clk 0:01:20.5]} 14.
c3 {[%clk 0:01:44.8]} 14... Ng6 {[%clk 0:01:13.7]} 15. h4 {[%clk 0:01:40.1]}
15... Be7 {[%clk 0:01:11]} 16. h5 {[%clk 0:01:32]} 16... Nge5 {[%clk 0:01:10.5]}
17. Nxe5 {[%clk 0:01:31.3]} 17... Nxe5 {[%clk 0:01:09.1]} 18. cxd4 {[%clk
0:01:31.7]} 18... cxd4 {[%clk 0:01:08.8]} 19. f4 {[%clk 0:01:21.1]} 19... Nc6
{[%clk 0:01:07.5]} 20. e5 {[%clk 0:01:20.3]} 20... O-O {[%clk 0:01:06.2]} 21.
Ne4 {[%clk 0:01:18.6]} 21... Nb4 {[%clk 0:01:03.4]} 22. Nf6+ {[%clk 0:01:00.8]}
22... Bxf6 {[%clk 0:01:02.8]} 23. Bxb7 {[%clk 0:01:00.8]} 23... Rc2 {[%clk
0:01:02.1]} 24. Rd2 {[%clk 0:01:00.9]} 24... Rxd2 {[%clk 0:00:45.5]} 25. Qxd2
{[%clk 0:01:01.8]} 25... Be7 {[%clk 0:00:45.7]} 26. Be4 {[%clk 0:00:51.8]} 26...
Qb6 {[%clk 0:00:38.7]} 27. Rc1 {[%clk 0:00:46]} 27... Rd8 {[%clk 0:00:25.3]} 28.
Qf2 {[%clk 0:00:37.4]} 28... Qa7 {[%clk 0:00:22.8]} 29. f5 {[%clk 0:00:33.8]}
29... Bg5 {[%clk 0:00:21.9]} 30. fxe6 {[%clk 0:00:05.2]} 30... Be3 {[%clk
0:00:20.7]} 0-1

[Event "*** Titled Tuesday Blitz"]
[Site "Chess.com"]
[Date "2020.04.21"]
[Round "1"]
[White "adiosabu"]
[Black "Igor_Lysyj"]
[Result "0-1"]
[WhiteElo "2426"]
[BlackElo "2806"]
[TimeControl "180+1"]
[EndTime "10:07:05 PDT"]
[Termination "Igor_Lysyj won by checkmate"]

1. e4 {[%clk 0:02:58]} 1... e5 {[%clk 0:02:59.3]} 2. Nf3 {[%clk 0:02:57.4]} 2...
Nc6 {[%clk 0:02:58.6]} 3. Bb5 {[%clk 0:02:57.4]} 3... a6 {[%clk 0:02:56.9]} 4.
Ba4 {[%clk 0:02:56.7]} 4... Nf6 {[%clk 0:02:56.4]} 5. d3 {[%clk 0:02:57.2]} 5...
Bc5 {[%clk 0:02:55.9]} 6. c4 {[%clk 0:02:48.8]} 6... O-O {[%clk 0:02:51.2]} 7.
O-O {[%clk 0:02:47.6]} 7... d6 {[%clk 0:02:48]} 8. h3 {[%clk 0:02:47.5]} 8...
Nd4 {[%clk 0:02:47.3]} 9. Nc3 {[%clk 0:02:42.3]} 9... c6 {[%clk 0:02:44.9]} 10.
Nxd4 {[%clk 0:02:34.3]} 10... Bxd4 {[%clk 0:02:44.5]} 11. Be3 {[%clk 0:02:31.8]}
11... Qb6 {[%clk 0:02:39.2]} 12. Qd2 {[%clk 0:02:23.4]} 12... Be6 {[%clk
0:02:35.9]} 13. Rae1 {[%clk 0:02:15.8]} 13... Bxe3 {[%clk 0:02:28.8]} 14. fxe3
{[%clk 0:02:07.4]} 14... Nd7 {[%clk 0:02:28.3]} 15. Bd1 {[%clk 0:02:04.1]} 15...
Rae8 {[%clk 0:02:20]} 16. Bg4 {[%clk 0:01:59.8]} 16... Bxg4 {[%clk 0:02:18.2]}
17. hxg4 {[%clk 0:01:59.5]} 17... Qd8 {[%clk 0:02:17.9]} 18. Qf2 {[%clk
0:01:53.9]} 18... g6 {[%clk 0:02:15.6]} 19. Qg3 {[%clk 0:01:43.5]} 19... Qg5
{[%clk 0:02:13.1]} 20. Rf3 {[%clk 0:01:38.5]} 20... Nf6 {[%clk 0:02:07.4]} 21.
Qh3 {[%clk 0:01:20.8]} 21... Nxg4 {[%clk 0:02:03.6]} 22. Rg3 {[%clk 0:01:20.3]}
22... h5 {[%clk 0:02:02.3]} 23. Nd1 {[%clk 0:01:20.1]} 23... Kg7 {[%clk
0:01:46]} 24. Nf2 {[%clk 0:01:09.1]} 24... Nxf2 {[%clk 0:01:44.1]} 25. Kxf2
{[%clk 0:01:07.6]} 25... Qf6+ {[%clk 0:01:42]} 26. Kg1 {[%clk 0:01:06.7]} 26...
Rh8 {[%clk 0:01:39.9]} 27. Rf1 {[%clk 0:01:05.5]} 27... Qe6 {[%clk 0:01:39.8]}
28. Qh4 {[%clk 0:01:04.6]} 28... f6 {[%clk 0:01:26.9]} 29. Rgf3 {[%clk
0:00:59.7]} 29... Ref8 {[%clk 0:01:26.7]} 30. b4 {[%clk 0:00:51.4]} 30... Rf7
{[%clk 0:01:25.2]} 31. Rg3 {[%clk 0:00:50.3]} 31... b5 {[%clk 0:01:05.5]} 32.
Rf5 {[%clk 0:00:45.9]} 32... bxc4 {[%clk 0:00:33.5]} 33. Rxh5 {[%clk 0:00:40.2]}
33... Rxh5 {[%clk 0:00:32.6]} 34. Qxh5 {[%clk 0:00:40.2]} 34... f5 {[%clk
0:00:33.2]} 35. dxc4 {[%clk 0:00:39.8]} 35... f4 {[%clk 0:00:24.1]} 36. exf4
{[%clk 0:00:35.2]} 36... exf4 {[%clk 0:00:24.1]} 37. Rg5 {[%clk 0:00:33.2]}
37... Qxe4 {[%clk 0:00:23.3]} 38. Qg4 {[%clk 0:00:31.6]} 38... Kf6 {[%clk
0:00:18.3]} 39. Ra5 {[%clk 0:00:27.7]} 39... Qe1+ {[%clk 0:00:17.2]} 40. Kh2
{[%clk 0:00:28.1]} 40... Rh7+ {[%clk 0:00:17.1]} 41. Qh3 {[%clk 0:00:29]} 41...
Rxh3+ {[%clk 0:00:16.6]} 42. Kxh3 {[%clk 0:00:29.3]} 42... Qg3# {[%clk
0:00:16.1]} 0-1

[Event "*** Titled Tuesday Blitz"]
[Site "Chess.com"]
[Date "2020.04.21"]
[Round "1"]
[White "RichardWe"]
[Black "igorkovalenko"]
[Result "0-1"]
[WhiteElo "2450"]
[BlackElo "2869"]
[TimeControl "180+1"]
[EndTime "10:07:06 PDT"]
[Termination "igorkovalenko won by resignation"]

1. d4 {[%clk 0:03:00.8]} 1... Nf6 {[%clk 0:02:59.6]} 2. c4 {[%clk 0:03:00.2]}
2... e6 {[%clk 0:02:59.3]} 3. Nf3 {[%clk 0:02:59.1]} 3... b6 {[%clk 0:02:58.1]}
4. a3 {[%clk 0:02:59.1]} 4... Ba6 {[%clk 0:02:50.5]} 5. e3 {[%clk 0:02:54.8]}
5... d5 {[%clk 0:02:49]} 6. b3 {[%clk 0:02:53]} 6... Bd6 {[%clk 0:02:48.5]} 7.
Bb2 {[%clk 0:02:52.7]} 7... O-O {[%clk 0:02:48.6]} 8. Nbd2 {[%clk 0:02:52.8]}
8... Bb7 {[%clk 0:02:45.7]} 9. Bd3 {[%clk 0:02:52.2]} 9... Nbd7 {[%clk
0:02:41.5]} 10. O-O {[%clk 0:02:49.5]} 10... Ne4 {[%clk 0:02:38.3]} 11. Qc2
{[%clk 0:02:44.9]} 11... f5 {[%clk 0:02:37.7]} 12. Ne5 {[%clk 0:02:39.6]} 12...
Bxe5 {[%clk 0:02:35.5]} 13. dxe5 {[%clk 0:02:39.2]} 13... Nxd2 {[%clk
0:02:34.6]} 14. Qxd2 {[%clk 0:02:38.3]} 14... Nc5 {[%clk 0:02:35.1]} 15. Qc2
{[%clk 0:02:04.9]} 15... Nxd3 {[%clk 0:02:17.6]} 16. Qxd3 {[%clk 0:02:04.3]}
16... dxc4 {[%clk 0:02:15.1]} 17. Qxc4 {[%clk 0:02:02.8]} 17... Qd5 {[%clk
0:02:15.5]} 18. Qxd5 {[%clk 0:02:01.6]} 18... Bxd5 {[%clk 0:02:16.4]} 19. b4
{[%clk 0:01:57.6]} 19... c5 {[%clk 0:02:12.1]} 20. Rfc1 {[%clk 0:01:53]} 20...
Rfc8 {[%clk 0:02:09.2]} 21. f3 {[%clk 0:01:48.2]} 21... a5 {[%clk 0:02:00.2]}
22. bxc5 {[%clk 0:01:39.4]} 22... bxc5 {[%clk 0:02:01.1]} 23. Bc3 {[%clk
0:01:35.8]} 23... a4 {[%clk 0:02:01.1]} 24. Rab1 {[%clk 0:01:31.1]} 24... Bb3
{[%clk 0:02:01.1]} 25. Rb2 {[%clk 0:01:29.5]} 25... Rd8 {[%clk 0:01:55.5]} 26.
Rd2 {[%clk 0:01:28]} 26... Rxd2 {[%clk 0:01:53.7]} 27. Bxd2 {[%clk 0:01:28]}
27... Rc8 {[%clk 0:01:51.4]} 28. Kf2 {[%clk 0:01:21.3]} 28... Kf7 {[%clk
0:01:51.1]} 29. h3 {[%clk 0:01:19.9]} 29... Rd8 {[%clk 0:01:40.5]} 30. Ke2
{[%clk 0:01:14.5]} 30... c4 {[%clk 0:01:34.7]} 31. Bb4 {[%clk 0:01:11.7]} 31...
Rd5 {[%clk 0:01:33.5]} 32. Bd6 {[%clk 0:01:04.7]} 32... g5 {[%clk 0:01:28.7]}
33. e4 {[%clk 0:01:00]} 33... Rd4 {[%clk 0:01:20.7]} 34. exf5 {[%clk 0:00:59]}
34... exf5 {[%clk 0:01:21.6]} 35. g4 {[%clk 0:00:52.6]} 35... f4 {[%clk
0:01:18.5]} 36. Bb4 {[%clk 0:00:37.5]} 36... Ke6 {[%clk 0:01:14.6]} 37. Bc3
{[%clk 0:00:31.6]} 37... Rd3 {[%clk 0:01:14]} 38. Kf2 {[%clk 0:00:31.4]} 38...
Bd1 {[%clk 0:01:13.1]} 39. Bb4 {[%clk 0:00:28.2]} 39... Rxf3+ {[%clk 0:01:11.7]}
40. Kg2 {[%clk 0:00:28.7]} 40... Rg3+ {[%clk 0:01:12.1]} 41. Kh2 {[%clk
0:00:28.2]} 41... Bb3 {[%clk 0:00:56.3]} 42. h4 {[%clk 0:00:24.9]} 42... h6
{[%clk 0:00:54]} 43. h5 {[%clk 0:00:23.3]} 43... Rxg4 {[%clk 0:00:53.9]} 44. Bf8
{[%clk 0:00:21.8]} 44... Rh4+ {[%clk 0:00:54]} 45. Kg2 {[%clk 0:00:21.4]} 45...
Rxh5 {[%clk 0:00:54.5]} 0-1

[Event "*** Titled Tuesday Blitz"]
[Site "Chess.com"]
[Date "2020.04.21"]
[Round "1"]
[White "smshk35"]
[Black "HaryKane"]
[Result "0-1"]
[WhiteElo "2335"]
[BlackElo "2660"]
[TimeControl "180+1"]
[EndTime "10:07:06 PDT"]
[Termination "HaryKane won by resignation"]

1. e4 {[%clk 0:03:00.9]} 1... e6 {[%clk 0:02:59.8]} 2. d4 {[%clk 0:02:59.7]}
2... d5 {[%clk 0:03:00]} 3. Nc3 {[%clk 0:02:59.3]} 3... Nf6 {[%clk 0:02:59.9]}
4. Bg5 {[%clk 0:02:58.6]} 4... Be7 {[%clk 0:02:59.8]} 5. e5 {[%clk 0:02:58.7]}
5... Nfd7 {[%clk 0:03:00.1]} 6. h4 {[%clk 0:02:59]} 6... h6 {[%clk 0:03:00.1]}
7. Bxe7 {[%clk 0:02:55.2]} 7... Qxe7 {[%clk 0:03:01]} 8. Qg4 {[%clk 0:02:47.6]}
8... O-O {[%clk 0:03:01]} 9. O-O-O {[%clk 0:02:25.9]} 9... c5 {[%clk 0:02:59]}
10. f4 {[%clk 0:02:16.1]} 10... cxd4 {[%clk 0:02:54.7]} 11. Nb5 {[%clk
0:02:14.9]} 11... Nc6 {[%clk 0:02:51.1]} 12. Nxd4 {[%clk 0:02:08.2]} 12... Nxd4
{[%clk 0:02:44.7]} 13. Rxd4 {[%clk 0:02:09.1]} 13... f6 {[%clk 0:02:44.9]} 14.
Nf3 {[%clk 0:02:05.9]} 14... f5 {[%clk 0:02:23.9]} 15. Qh3 {[%clk 0:01:52.1]}
15... Nc5 {[%clk 0:02:20.2]} 16. Bd3 {[%clk 0:01:44.5]} 16... Bd7 {[%clk
0:02:12.4]} 17. g4 {[%clk 0:01:41.5]} 17... fxg4 {[%clk 0:02:04]} 18. Qxg4
{[%clk 0:01:39.4]} 18... Rac8 {[%clk 0:02:00.9]} 19. h5 {[%clk 0:01:11.2]} 19...
Nxd3+ {[%clk 0:01:59.5]} 20. Rxd3 {[%clk 0:01:12.1]} 20... Bb5 {[%clk
0:01:58.9]} 21. Rd2 {[%clk 0:01:09]} 21... Qf7 {[%clk 0:01:37.2]} 22. Rg1 {[%clk
0:01:07.2]} 22... Rc7 {[%clk 0:01:18.6]} 23. Nd4 {[%clk 0:01:06.1]} 23... Bd7
{[%clk 0:01:19.1]} 24. Rf1 {[%clk 0:00:43.1]} 24... Kh8 {[%clk 0:00:54.5]} 25.
Rg2 {[%clk 0:00:32.6]} 25... Rc4 {[%clk 0:00:48.2]} 26. c3 {[%clk 0:00:30.7]}
26... b5 {[%clk 0:00:43.6]} 27. Qg6 {[%clk 0:00:26.2]} 27... b4 {[%clk
0:00:36.7]} 28. Qxf7 {[%clk 0:00:26]} 28... Rxf7 {[%clk 0:00:37.6]} 29. f5
{[%clk 0:00:21.4]} 29... bxc3 {[%clk 0:00:35.5]} 30. bxc3 {[%clk 0:00:18.4]}
30... Rxc3+ {[%clk 0:00:36.1]} 31. Rc2 {[%clk 0:00:13.7]} 31... Rxc2+ {[%clk
0:00:26.9]} 32. Kxc2 {[%clk 0:00:14.6]} 32... Rf8 {[%clk 0:00:20.8]} 33. fxe6
{[%clk 0:00:13.4]} 33... Ba4+ {[%clk 0:00:19.6]} 34. Kc3 {[%clk 0:00:10.3]}
34... Rxf1 {[%clk 0:00:20]} 35. e7 {[%clk 0:00:10.9]} 35... Rf7 {[%clk
0:00:18.6]} 36. Nc6 {[%clk 0:00:08.4]} 36... Bxc6 {[%clk 0:00:18.4]} 0-1

[Event "*** Titled Tuesday Blitz"]
[Site "Chess.com"]
[Date "2020.04.21"]
[Round "1"]
[White "KetiTsatsalashvili"]
[Black "AliKa2810"]
[Result "0-1"]
[WhiteElo "2224"]
[BlackElo "2577"]
[TimeControl "180+1"]
[EndTime "10:07:06 PDT"]
[Termination "AliKa2810 won by resignation"]

1. Nf3 {[%clk 0:02:59.7]} 1... Nf6 {[%clk 0:02:58.1]} 2. d4 {[%clk 0:03:00.6]}
2... d5 {[%clk 0:02:55.8]} 3. Bf4 {[%clk 0:02:58.9]} 3... e6 {[%clk 0:02:54.7]}
4. e3 {[%clk 0:02:58.5]} 4... c5 {[%clk 0:02:54.9]} 5. c3 {[%clk 0:02:57.8]}
5... Nc6 {[%clk 0:02:55.4]} 6. Bd3 {[%clk 0:02:56.4]} 6... Bd6 {[%clk
0:02:54.7]} 7. Bg3 {[%clk 0:02:55.2]} 7... O-O {[%clk 0:02:52.9]} 8. O-O {[%clk
0:02:54.1]} 8... b6 {[%clk 0:02:51.9]} 9. Nbd2 {[%clk 0:02:53]} 9... Bb7 {[%clk
0:02:51.8]} 10. Ne5 {[%clk 0:02:51.6]} 10... Ne7 {[%clk 0:02:50.2]} 11. f4
{[%clk 0:02:50.9]} 11... Nf5 {[%clk 0:02:49.8]} 12. Bf2 {[%clk 0:02:48.9]} 12...
Be7 {[%clk 0:02:50.3]} 13. Qc2 {[%clk 0:02:45.4]} 13... Nd6 {[%clk 0:02:46.2]}
14. Bh4 {[%clk 0:02:33.5]} 14... Nfe4 {[%clk 0:02:43.6]} 15. Bxe7 {[%clk
0:02:25.4]} 15... Qxe7 {[%clk 0:02:44.5]} 16. Nxe4 {[%clk 0:02:13.7]} 16... Nxe4
{[%clk 0:02:45]} 17. Rad1 {[%clk 0:02:00.3]} 17... f6 {[%clk 0:02:38.5]} 18. Nf3
{[%clk 0:01:57.1]} 18... Rac8 {[%clk 0:02:36.2]} 19. Qe2 {[%clk 0:01:54.7]}
19... Rfd8 {[%clk 0:02:23.8]} 20. Nd2 {[%clk 0:01:53.5]} 20... a5 {[%clk
0:01:50.6]} 21. Ba6 {[%clk 0:01:28.8]} 21... Nd6 {[%clk 0:01:26]} 22. Bxb7
{[%clk 0:01:24.3]} 22... Qxb7 {[%clk 0:01:24.9]} 23. Rde1 {[%clk 0:01:21.4]}
23... b5 {[%clk 0:01:15.3]} 24. dxc5 {[%clk 0:01:15.3]} 24... Rxc5 {[%clk
0:01:14]} 25. Nb3 {[%clk 0:01:10.5]} 25... Rc7 {[%clk 0:01:10.2]} 26. Nxa5
{[%clk 0:01:11.4]} 26... Qa7 {[%clk 0:01:08.7]} 27. Nb3 {[%clk 0:01:11.5]} 27...
e5 {[%clk 0:00:53.6]} 28. fxe5 {[%clk 0:01:09.8]} 28... fxe5 {[%clk 0:00:54.5]}
29. Qh5 {[%clk 0:00:59.9]} 29... Re7 {[%clk 0:00:54.5]} 30. a3 {[%clk
0:00:48.7]} 30... Nc4 {[%clk 0:00:54.2]} 31. Qe2 {[%clk 0:00:46.9]} 31... h6
{[%clk 0:00:45.7]} 32. Rf3 {[%clk 0:00:46.4]} 32... Rd6 {[%clk 0:00:36.8]} 33.
Ref1 {[%clk 0:00:44.6]} 33... Rg6 {[%clk 0:00:37.3]} 34. Qd3 {[%clk 0:00:30.1]}
34... Kh7 {[%clk 0:00:33.1]} 35. Kh1 {[%clk 0:00:23.5]} 35... e4 {[%clk
0:00:32.9]} 36. Qxd5 {[%clk 0:00:22.3]} 36... exf3 {[%clk 0:00:33]} 37. Qxf3
{[%clk 0:00:21.8]} 37... Qxe3 {[%clk 0:00:31.5]} 38. Qf8 {[%clk 0:00:20]} 38...
Qe2 {[%clk 0:00:28.2]} 39. Rg1 {[%clk 0:00:18.9]} 39... Qxg2+ {[%clk 0:00:27.4]}
40. Rxg2 {[%clk 0:00:18.2]} 40... Re1+ {[%clk 0:00:28]} 0-1

[Event "*** Titled Tuesday Blitz"]
[Site "Chess.com"]
[Date "2020.04.21"]
[Round "1"]
[White "MilanovicDan"]
[Black "Jospem"]
[Result "0-1"]
[WhiteElo "2433"]
[BlackElo "2824"]
[TimeControl "180+1"]
[EndTime "10:07:08 PDT"]
[Termination "Jospem won on time"]

1. d4 {[%clk 0:03:00.1]} 1... Nf6 {[%clk 0:02:59.5]} 2. c4 {[%clk 0:03:00]} 2...
e6 {[%clk 0:02:59.5]} 3. Nc3 {[%clk 0:03:00.2]} 3... Bb4 {[%clk 0:02:58.7]} 4.
e3 {[%clk 0:03:00.3]} 4... O-O {[%clk 0:02:58.2]} 5. Bd3 {[%clk 0:03:00]} 5...
b6 {[%clk 0:02:58.7]} 6. Ne2 {[%clk 0:02:59.9]} 6... Bb7 {[%clk 0:02:59.1]} 7.
O-O {[%clk 0:03:00]} 7... c5 {[%clk 0:02:58.5]} 8. d5 {[%clk 0:02:58.4]} 8... d6
{[%clk 0:02:53.1]} 9. e4 {[%clk 0:02:56.7]} 9... Nbd7 {[%clk 0:02:51.8]} 10. f4
{[%clk 0:02:52.2]} 10... a6 {[%clk 0:02:50.2]} 11. Bd2 {[%clk 0:02:42.1]} 11...
exd5 {[%clk 0:02:48.4]} 12. exd5 {[%clk 0:02:34.4]} 12... b5 {[%clk 0:02:47.7]}
13. b3 {[%clk 0:02:31.4]} 13... bxc4 {[%clk 0:02:42.5]} 14. bxc4 {[%clk
0:02:30.8]} 14... Re8 {[%clk 0:02:40.3]} 15. h3 {[%clk 0:02:26.9]} 15... a5
{[%clk 0:02:37.1]} 16. a3 {[%clk 0:02:18]} 16... Bxc3 {[%clk 0:02:36.7]} 17.
Nxc3 {[%clk 0:02:16.6]} 17... Ba6 {[%clk 0:02:36.4]} 18. Rb1 {[%clk 0:02:01.9]}
18... Nb6 {[%clk 0:02:35.7]} 19. Nb5 {[%clk 0:01:57]} 19... Bxb5 {[%clk
0:02:22.4]} 20. Rxb5 {[%clk 0:01:56.2]} 20... Nbd7 {[%clk 0:02:23]} 21. Qf3
{[%clk 0:01:47.5]} 21... a4 {[%clk 0:02:17.3]} 22. g4 {[%clk 0:01:43.6]} 22...
h6 {[%clk 0:02:17.6]} 23. h4 {[%clk 0:01:39.5]} 23... Nh7 {[%clk 0:02:17.6]} 24.
g5 {[%clk 0:01:37.9]} 24... Nhf8 {[%clk 0:02:17.6]} 25. Qg4 {[%clk 0:01:18.2]}
25... g6 {[%clk 0:02:13.3]} 26. h5 {[%clk 0:01:09.6]} 26... hxg5 {[%clk
0:02:13.4]} 27. hxg6 {[%clk 0:01:08.2]} 27... Nxg6 {[%clk 0:02:09]} 28. Bxg6
{[%clk 0:00:57.8]} 28... fxg6 {[%clk 0:02:08.8]} 29. Rb7 {[%clk 0:00:57.6]}
29... Re7 {[%clk 0:01:57.5]} 30. Bc3 {[%clk 0:00:45.5]} 30... Rb8 {[%clk
0:01:07.6]} 31. Rxb8 {[%clk 0:00:39]} 31... Qxb8 {[%clk 0:01:08.5]} 32. Qxg5
{[%clk 0:00:38.9]} 32... Qe8 {[%clk 0:01:08.4]} 33. Rf2 {[%clk 0:00:20.3]} 33...
Nf8 {[%clk 0:00:56.8]} 34. Qf6 {[%clk 0:00:13.7]} 34... Rh7 {[%clk 0:00:53.7]}
35. Qxd6 {[%clk 0:00:05.7]} 35... Qe3 {[%clk 0:00:52.4]} 36. Qe5 {[%clk
0:00:05.5]} 36... Qg3+ {[%clk 0:00:48.1]} 37. Rg2 {[%clk 0:00:04.6]} 37... Qd3
{[%clk 0:00:39.1]} 38. f5 {[%clk 0:00:03.3]} 38... Qd1+ {[%clk 0:00:33.2]} 39.
Kf2 {[%clk 0:00:03.3]} 39... Qc2+ {[%clk 0:00:33]} 0-1

[Event "*** Titled Tuesday Blitz"]
[Site "Chess.com"]
[Date "2020.04.21"]
[Round "1"]
[White "Muracle"]
[Black "Roenko_Artur"]
[Result "1-0"]
[WhiteElo "2598"]
[BlackElo "2248"]
[TimeControl "180+1"]
[EndTime "10:07:08 PDT"]
[Termination "Muracle won by resignation"]

1. e4 {[%clk 0:03:00.9]} 1... e6 {[%clk 0:02:54.6]} 2. d4 {[%clk 0:02:57.8]}
2... d5 {[%clk 0:02:52.9]} 3. Nd2 {[%clk 0:02:56.9]} 3... Nc6 {[%clk 0:02:51.7]}
4. Ngf3 {[%clk 0:02:56.1]} 4... Nf6 {[%clk 0:02:50.8]} 5. e5 {[%clk 0:02:53.8]}
5... Nd7 {[%clk 0:02:50.6]} 6. c3 {[%clk 0:02:45.5]} 6... f6 {[%clk 0:02:50.1]}
7. exf6 {[%clk 0:02:44.8]} 7... Qxf6 {[%clk 0:02:51]} 8. Bd3 {[%clk 0:02:43.2]}
8... e5 {[%clk 0:02:50.9]} 9. dxe5 {[%clk 0:02:42.4]} 9... Ndxe5 {[%clk
0:02:51.8]} 10. Nxe5 {[%clk 0:02:40.8]} 10... Nxe5 {[%clk 0:02:52.7]} 11. Be2
{[%clk 0:02:39.9]} 11... Bd6 {[%clk 0:02:48.9]} 12. Nf3 {[%clk 0:02:32.1]} 12...
O-O {[%clk 0:02:36]} 13. Qxd5+ {[%clk 0:02:16]} 13... Be6 {[%clk 0:02:36.2]} 14.
Qe4 {[%clk 0:02:07.2]} 14... Rae8 {[%clk 0:02:16.7]} 15. Be3 {[%clk 0:02:02.9]}
15... c6 {[%clk 0:02:03.3]} 16. Nxe5 {[%clk 0:01:46]} 16... Bxe5 {[%clk
0:01:43.5]} 17. Bc4 {[%clk 0:01:40.5]} 17... Bxc3+ {[%clk 0:01:30.7]} 18. Kf1
{[%clk 0:01:25.2]} 18... Bxb2 {[%clk 0:01:23.4]} 19. Rb1 {[%clk 0:01:18.1]}
19... Bxc4+ {[%clk 0:01:04.1]} 20. Qxc4+ {[%clk 0:01:17.3]} 20... Kh8 {[%clk
0:01:04.6]} 21. Qd3 {[%clk 0:00:35.4]} 21... c5 {[%clk 0:00:23.2]} 22. Bxc5
{[%clk 0:00:30.2]} 22... Bc3 {[%clk 0:00:08.9]} 23. Bxf8 {[%clk 0:00:28.3]}
23... Rxf8 {[%clk 0:00:06.7]} 24. f3 {[%clk 0:00:28]} 24... Bd4 {[%clk 0:00:06]}
25. Re1 {[%clk 0:00:26.3]} 25... Bb6 {[%clk 0:00:05.7]} 26. g3 {[%clk
0:00:24.4]} 26... Qb2 {[%clk 0:00:05.5]} 27. Qe2 {[%clk 0:00:23.4]} 27... Qb4
{[%clk 0:00:04]} 28. Kg2 {[%clk 0:00:22.5]} 28... Qa3 {[%clk 0:00:04.3]} 29.
Rhf1 {[%clk 0:00:20.4]} 29... h6 {[%clk 0:00:03.6]} 30. Qe7 {[%clk 0:00:20]}
30... Qb2+ {[%clk 0:00:02.6]} 31. Re2 {[%clk 0:00:19.8]} 31... Qf6 {[%clk
0:00:02]} 32. Qxf6 {[%clk 0:00:19.8]} 32... Rxf6 {[%clk 0:00:02.9]} 33. f4
{[%clk 0:00:20.1]} 33... Rc6 {[%clk 0:00:03.5]} 34. Rf3 {[%clk 0:00:19.6]} 34...
Rc3 {[%clk 0:00:04.2]} 35. Rxc3 {[%clk 0:00:19.4]} 1-0